bitfinex/quotes_BTCUSD_20250617
["timestamp","ask_amount","ask_price","bid_price","bid_amount"]
[1750191949777,0.19100372,104710.0,104700.0,0.21967496]
[1750191949980,0.20055372,104710.0,104700.0,0.22922569]
[1750191950187,0.21965354,104710.0,104700.0,0.2764989]
[1750191950425,0.21965354,104710.0,104700.0,0.22922578]
[1750191950810,0.21010381,104710.0,104700.0,0.21967496]
[1750191951220,0.21010381,104710.0,104700.0,0.22922569]
[1750191951848,0.19100372,104710.0,104700.0,0.22922569]
[1750191952052,0.20055381,104710.0,104700.0,0.22922569]
[1750191952669,0.21010381,104710.0,104700.0,0.22922569]
[1750191953131,0.21010381,104710.0,104700.0,0.23877633]
[1750191953342,0.21010381,104710.0,104700.0,0.23877569]
[1750191953542,0.01909918,104710.0,104700.0,0.71356614]
[1750191953958,0.00954945,104710.0,104700.0,0.30197569]
[1750191954184,0.01909908,104710.0,104700.0,0.71356614]
[1750191954392,0.00954945,104710.0,104700.0,0.71356614]
[1750191954623,0.00954936,104710.0,104700.0,0.69446386]
[1750191955091,0.25196858,104720.0,104710.0,0.21010381]
[1750191955335,0.25196858,104720.0,104710.0,0.22920317]
[1750191955588,0.26691283,104720.0,104710.0,0.22920317]
[1750191955809,0.06637808,104720.0,104710.0,0.22920317]
[1750191956026,0.06637808,104720.0,104710.0,0.49570302]
[1750191956233,0.26891283,104720.0,104710.0,0.51895348]
[1750191956451,0.26891283,104720.0,104710.0,0.50940366]
[1750191956718,0.28860815,104720.0,104710.0,0.50940366]
[1750191956963,0.27091283,104720.0,104710.0,0.49570311]
[1750191957185,0.2797607,104720.0,104710.0,0.49570311]
[1750191957605,0.0792254,104720.0,104710.0,0.49570311]
[1750191957820,0.27976006,104720.0,104710.0,0.49570311]
[1750191958053,0.29745749,104720.0,104710.0,0.49570311]
[1750191958280,0.10647201,104720.0,104710.0,0.53805265]
[1750191958527,0.0305453,104720.0,104710.0,1.4738431]
[1750191958759,0.004,104720.0,104710.0,1.6409631]
[1750191959495,0.00954763,104730.0,104720.0,0.21963219]
[1750191959740,0.29356713,104740.0,104730.0,0.21006368]
[1750191959976,0.29356713,104740.0,104730.0,0.21961158]
[1750191959977,0.33213886,104740.0,104730.0,0.21961158]
[1750191960227,0.13155156,104740.0,104730.0,0.22915939]
[1750191960468,0.09297947,104740.0,104730.0,0.27150711]
[1750191960712,0.10252682,104740.0,104730.0,0.27150711]
[1750191960957,0.07388522,104740.0,104730.0,0.85017756]
[1750191961204,0.07388522,104740.0,104730.0,0.88077756]
[1750191961205,0.00899252,104740.0,104730.0,0.88077756]
[1750191961452,0.00899252,104740.0,104730.0,0.46918711]
[1750191961693,0.00899252,104740.0,104730.0,1.29236801]
[1750191961961,0.00899252,104740.0,104730.0,0.88077756]
[1750191962670,0.00899252,104740.0,104730.0,2.23716022]
[1750191962671,0.00014226,104740.0,104730.0,2.23716022]
[1750191962912,0.60251379,104770.0,104740.0,0.61462703]
[1750191963197,0.0190917,104750.0,104740.0,0.20048004]
[1750191963446,0.02864115,104740.0,104730.0,0.24306331]
[1750191963682,0.44977796,104740.0,104730.0,0.21006368]
[1750191963931,0.68631751,104740.0,104730.0,0.19096724]
[1750191964171,0.27224706,104740.0,104730.0,0.2005156]
[1750191964406,0.27224706,104740.0,104720.0,0.45073146]
[1750191964407,0.20051542,104730.0,104720.0,0.21008356]
[1750191964651,0.20051542,104730.0,104720.0,0.22932326]
[1750191964652,0.03681951,104730.0,104720.0,0.22932326]
[1750191964894,0.0286437,104730.0,104720.0,0.22932326]
[1750191965130,0.03819188,104730.0,104720.0,0.22932326]
[1750191965623,0.03819188,104730.0,104720.0,0.39632326]
[1750191965851,0.21961094,104730.0,104720.0,0.36867692]
[1750191966062,0.2373436,104730.0,104720.0,0.38777482]
[1750191966272,0.04637636,104730.0,104720.0,0.40687226]
[1750191966490,0.2196114,104730.0,104720.0,0.39732363]
[1750191966707,0.03819243,104730.0,104720.0,0.37818564]
[1750191966963,0.04774079,104730.0,104720.0,0.38773464]
[1750191967171,0.23870803,104730.0,104720.0,0.38773473]
[1750191967420,0.24689564,104730.0,104720.0,0.38773473]
[1750191967662,0.24689564,104730.0,104720.0,0.44933473]
[1750191967663,0.01773529,104730.0,104720.0,0.44933473]
[1750191967880,0.02864316,104730.0,104720.0,0.23132336]
[1750191968095,0.02864316,104730.0,104720.0,0.38873473]
[1750191968327,0.03819115,104730.0,104720.0,0.39828345]
[1750191968542,0.02864316,104730.0,104720.0,0.40783208]
[1750191969425,0.02864307,104730.0,104720.0,0.40783208]
[1750191969638,0.03819115,104730.0,104720.0,0.40783208]
[1750191969845,0.23870675,104730.0,104720.0,0.40783208]
[1750191970106,0.06547961,104730.0,104720.0,0.40783208]
[1750191970326,0.04773933,104730.0,104720.0,0.40783208]
[1750191971224,0.23870657,104730.0,104720.0,0.21222592]
[1750191971354,0.06548034,104730.0,104720.0,0.39828327]
[1750191971569,0.04774006,104730.0,104720.0,0.39828327]
[1750191971788,0.01909589,104730.0,104720.0,0.39828336]
[1750191972100,0.02864416,104730.0,104720.0,0.38873482]
[1750191972276,0.02864407,104730.0,104720.0,0.39828345]
[1750191972504,0.21961177,104730.0,104720.0,0.37918601]
[1750191972741,0.04639824,104730.0,104720.0,0.38873482]
[1750191972983,0.0368496,104730.0,104720.0,0.39828345]
[1750191973212,0.01909589,104730.0,104720.0,0.39828345]
[1750191973462,0.01909589,104730.0,104720.0,0.8098739]
[1750191973695,0.01909535,104730.0,104720.0,0.8098739]
[1750191974155,0.01909535,104730.0,104720.0,0.80987399]
[1750191974395,0.01909535,104730.0,104720.0,0.81942262]
[1750191975316,0.22915876,104730.0,104720.0,0.80028536]
[1750191975566,0.46900933,104730.0,104720.0,0.00214226]
[1750191975800,0.8216807,104730.0,104720.0,0.19312774]
[1750191976087,0.41009025,104730.0,104720.0,0.19312774]
[1750191976314,0.03619222,104730.0,104720.0,0.22372774]
[1750191976556,0.03685864,104730.0,104720.0,0.6639649]
[1750191976786,0.03685864,104730.0,104720.0,0.22177445]
[1750191977014,0.03685846,104730.0,104720.0,0.22177445]
[1750191977245,0.03685846,104730.0,104720.0,0.22077445]
[1750191977473,0.03819161,104730.0,104720.0,0.21977445]
[1750191977702,0.03919161,104730.0,104720.0,0.21977445]
[1750191977937,0.04019161,104730.0,104720.0,0.21977445]
[1750191978189,0.03886149,104730.0,104720.0,0.21977445]
[1750191978408,0.05795738,104730.0,104720.0,0.21977445]
[1750191978648,0.06750611,104730.0,104720.0,0.21977454]
[1750191978862,0.03886167,104730.0,104720.0,0.22932317]
[1750191979073,0.02109571,104730.0,104720.0,0.22932317]
[1750191979290,0.01976596,104730.0,104720.0,0.27659629]
[1750191979509,0.01154754,104730.0,104720.0,0.70461362]
[1750191979769,0.01154754,104730.0,104720.0,0.99571362]
[1750191980250,0.002,104730.0,104720.0,0.99571362]
[1750191980724,0.01154754,104730.0,104720.0,0.99571362]
[1750191980981,0.01979053,104730.0,104720.0,0.99571362]
[1750191981247,0.01979378,104730.0,104720.0,0.99571362]
[1750191981473,0.01154772,104730.0,104720.0,0.99571362]
[1750191981704,0.0293422,104730.0,104720.0,0.99571362]
[1750191982643,0.002,104730.0,104720.0,0.99571362]
[1750191984048,0.002,104730.0,104720.0,0.99575362]
[1750191985000,0.02934718,104730.0,104720.0,0.99575362]
[1750191985154,0.01979946,104730.0,104720.0,0.99575362]
[1750191985605,0.06540718,104740.0,104730.0,0.49091176]
[1750191985825,0.07495417,104740.0,104730.0,0.65775176]
[1750191986057,0.06540718,104740.0,104730.0,0.65775176]
[1750191986289,0.08450125,104740.0,104730.0,0.65775176]
[1750191986506,0.09405236,104740.0,104730.0,0.47181605]
[1750191986727,0.28500137,104740.0,104730.0,0.64820404]
[1750191986938,0.28700137,104740.0,104730.0,0.65775194]
[1750191987151,0.28700137,104740.0,104730.0,0.64820404]
[1750191987375,0.28700137,104740.0,104730.0,0.65775194]
[1750191987611,0.28700137,104740.0,104730.0,0.64820413]
[1750191987819,0.29654882,104740.0,104730.0,0.65775203]
[1750191988027,0.29000201,104740.0,104730.0,0.65775203]
[1750191988450,0.29000201,104740.0,104730.0,0.65775212]
[1750191988904,0.29000201,104740.0,104730.0,0.64820413]
[1750191989375,0.29000832,104740.0,104730.0,0.50050002]
[1750191989622,0.29000886,104740.0,104730.0,0.66730002]
[1750191989854,0.28046196,104740.0,104730.0,0.43814054]
[1750191990079,0.26136753,104740.0,104730.0,4e-05]
[1750191990307,0.26136753,104740.0,104730.0,0.35780724]
[1750191990538,0.26136753,104740.0,104730.0,0.3673556]
[1750191990969,0.26136753,104740.0,104730.0,0.17638836]
[1750191991190,0.26136753,104740.0,104730.0,0.3673556]
[1750191991475,0.84674059,104740.0,104730.0,4e-05]
[1750191991695,0.86947956,104740.0,104730.0,4e-05]
[1750191991912,1.03623956,104740.0,104730.0,4e-05]
[1750191992135,1.03624193,104740.0,104730.0,4e-05]
[1750191993716,0.62465148,104740.0,104730.0,4e-05]
[1750191995456,1.03444193,104740.0,104730.0,4e-05]
[1750191996156,1.21280723,104740.0,104730.0,4e-05]
[1750191996394,1.36280723,104740.0,104730.0,4e-05]
[1750191996614,1.36949357,104740.0,104730.0,4e-05]
[1750191997044,0.95790312,104740.0,104730.0,4e-05]
[1750191997269,1.45895645,104740.0,104730.0,4e-05]
[1750191997728,1.48347437,104740.0,104730.0,4e-05]
[1750191998339,1.4767881,104740.0,104730.0,4e-05]
[1750191999884,0.0317,104680.0,104650.0,0.15929223]
[1750192000129,0.2006687,104650.0,104640.0,0.0639]
[1750192000423,0.3673887,104650.0,104640.0,0.0639]
[1750192000665,0.3673887,104650.0,104640.0,0.0326]
[1750192000884,0.21022408,104650.0,104640.0,0.2524001]
[1750192001112,0.38645965,104650.0,104640.0,0.0644]
[1750192001345,0.37690427,104650.0,104640.0,0.00047451]
[1750192001795,0.4105678,104650.0,104640.0,0.00047451]
[1750192002236,0.2438878,104650.0,104640.0,0.00047451]
[1750192002460,0.2438878,104650.0,104640.0,0.01003108]
[1750192002689,0.44781233,104650.0,104640.0,0.01003108]
[1750192002914,0.43825676,104650.0,104640.0,0.00047451]
[1750192003156,0.43825676,104650.0,104640.0,0.20116257]
[1750192003376,0.50074245,104650.0,104640.0,0.00047451]
[1750192003589,0.40459323,104650.0,104640.0,0.00047451]
[1750192003812,0.43769279,104650.0,104640.0,0.00047451]
[1750192004023,0.43769279,104650.0,104640.0,0.00147451]
[1750192004940,0.3673888,104650.0,104640.0,0.20216248]
[1750192005185,0.4141888,104650.0,104640.0,0.20216248]
[1750192005423,0.22031038,104660.0,104650.0,0.19111323]
[1750192005651,0.22031038,104660.0,104650.0,0.21022427]
[1750192005889,0.01910629,104670.0,104660.0,0.2833581]
[1750192006121,0.05261733,104680.0,104670.0,0.21018392]
[1750192006350,0.45719579,104680.0,104670.0,0.21973739]
[1750192006566,0.45719579,104680.0,104670.0,0.20063036]
[1750192007035,0.44764324,104680.0,104670.0,0.20063036]
[1750192007247,0.23412324,104680.0,104670.0,0.21018392]
[1750192007474,0.00955328,104670.0,104660.0,0.27380309]
[1750192007686,0.02866049,104670.0,104660.0,0.28335774]
[1750192008570,0.03821368,104670.0,104660.0,0.28335774]
[1750192008781,0.01910647,104670.0,104660.0,0.28335774]
[1750192009009,0.02865994,104670.0,104660.0,0.28835774]
[1750192009682,0.03821349,104670.0,104660.0,0.28835774]
[1750192009920,0.0382134,104670.0,104660.0,0.28835774]
[1750192010142,0.04776705,104670.0,104660.0,0.28835774]
[1750192010365,0.04776705,104670.0,104660.0,0.28839774]
[1750192010625,0.0382134,104670.0,104660.0,0.28839774]
[1750192011077,0.02865984,104670.0,104660.0,0.28839774]
[1750192011272,0.0382134,104670.0,104660.0,0.28839774]
[1750192011714,0.48627054,104680.0,104670.0,0.21018373]
[1750192011970,0.48627054,104680.0,104670.0,0.21018392]
[1750192012183,0.48627054,104680.0,104670.0,0.21973739]
[1750192012407,0.48627054,104680.0,104670.0,0.20063036]
[1750192012621,0.48627054,104680.0,104670.0,0.21018392]
[1750192013071,0.48627054,104680.0,104670.0,0.22929076]
[1750192013509,0.49582318,104680.0,104670.0,0.22929076]
[1750192013964,0.49582318,104680.0,104670.0,0.21118392]
[1750192014452,0.46716525,104680.0,104670.0,0.19207671]
[1750192014905,0.42987808,104680.0,104670.0,0.21118392]
[1750192015354,0.42987808,104680.0,104670.0,0.20163045]
[1750192015582,0.42987808,104680.0,104670.0,0.21118419]
[1750192015831,0.42987808,104680.0,104670.0,0.22073775]
[1750192016053,0.39636613,104680.0,104670.0,0.22073775]
[1750192016270,0.39636613,104680.0,104670.0,0.21118419]
[1750192016477,0.39636613,104680.0,104670.0,0.22073775]
[1750192016733,0.39636613,104680.0,104670.0,0.23029122]
[1750192017237,0.39636613,104680.0,104670.0,0.001]
[1750192017475,0.21485967,104680.0,104670.0,0.28443711]
[1750192017701,0.2244125,104680.0,104670.0,0.28443711]
[1750192017916,0.5244125,104680.0,104670.0,0.28443711]
[1750192018143,0.52441241,104680.0,104670.0,0.28443711]
[1750192018375,0.7250237,104680.0,104670.0,0.28443711]
[1750192018606,0.53396524,104680.0,104670.0,0.28443711]
[1750192018833,0.75786199,104680.0,104670.0,0.24368392]
[1750192019056,0.75786199,104680.0,104670.0,0.25323729]
[1750192019519,0.75786199,104680.0,104670.0,0.23413045]
[1750192019735,0.74830971,104680.0,104670.0,0.21118401]
[1750192019958,0.74830971,104680.0,104670.0,0.22073748]
[1750192020401,0.73875716,104680.0,104670.0,0.2111841]
[1750192020614,0.73875716,104680.0,104670.0,0.23029113]
[1750192021068,0.73875716,104680.0,104670.0,0.20163054]
[1750192021286,0.72920442,104680.0,104670.0,0.19207671]
[1750192021513,0.72920442,104680.0,104670.0,0.20163045]
[1750192021949,0.72920442,104680.0,104670.0,0.22073747]
[1750192021950,0.37146568,104680.0,104670.0,0.22073747]
[1750192022201,0.54694548,104680.0,104670.0,0.26129066]
[1750192022422,0.74755704,104680.0,104670.0,0.20163045]
[1750192022849,1.15864082,104680.0,104670.0,0.20163045]
[1750192023072,1.14908597,104680.0,104670.0,0.20163045]
[1750192023772,1.12001113,104680.0,104670.0,0.21118401]
[1750192023986,1.21616035,104680.0,104670.0,0.21118401]
[1750192024638,0.93850522,104680.0,104670.0,0.23029057]
[1750192024856,0.94805741,104680.0,104670.0,0.23029057]
[1750192025066,1.14866879,104680.0,104670.0,0.21118401]
[1750192025916,1.14868523,104680.0,104670.0,0.23029085]
[1750192026350,1.1295804,104680.0,104670.0,0.19207671]
[1750192026557,1.1295804,104680.0,104670.0,0.21118401]
[1750192026985,1.1295804,104680.0,104670.0,0.22073748]
[1750192027410,0.92896847,104680.0,104670.0,0.23029067]
[1750192027624,0.47545421,104680.0,104670.0,0.29629067]
[1750192027845,0.4850064,104680.0,104670.0,0.29629067]
[1750192028069,0.49455886,104680.0,104670.0,0.29629067]
[1750192028276,0.53323694,104680.0,104670.0,0.29629067]
[1750192028493,0.53323685,104680.0,104670.0,0.29629067]
[1750192028704,0.5136886,104680.0,104670.0,0.29629067]
[1750192028918,0.53638725,104680.0,104670.0,0.29629067]
[1750192029138,0.53638716,104680.0,104670.0,0.29629067]
[1750192029581,0.5459399,104680.0,104670.0,0.29629067]
[1750192029832,0.49565759,104680.0,104670.0,0.34356379]
[1750192030060,0.50520978,104680.0,104670.0,0.58739067]
[1750192030474,0.51476224,104680.0,104670.0,0.58739067]
[1750192030905,0.51476215,104680.0,104670.0,0.58739067]
[1750192031163,0.72492581,104680.0,104670.0,0.57783748]
[1750192031385,0.53386735,104680.0,104670.0,0.59694395]
[1750192031602,0.76884391,104680.0,104670.0,0.59694395]
[1750192031810,0.5052153,104680.0,104670.0,0.59694395]
[1750192032033,0.50521521,104680.0,104670.0,0.59694395]
[1750192032247,0.51476758,104680.0,104670.0,0.59694395]
[1750192032470,0.52432013,104680.0,104670.0,0.59694395]
[1750192032902,0.51476758,104680.0,104670.0,0.59694395]
[1750192033110,0.51476749,104680.0,104670.0,0.59694395]
[1750192033332,0.50521521,104680.0,104670.0,0.59694395]
[1750192033554,0.51476749,104680.0,104670.0,0.59694395]
[1750192033762,0.52432004,104680.0,104670.0,0.59694395]
[1750192033990,1.13601593,104680.0,104670.0,0.48317671]
[1750192034216,1.02266941,104680.0,104670.0,0.51183701]
[1750192034445,1.05892112,104680.0,104670.0,0.5118372]
[1750192034671,0.95321889,104680.0,104670.0,0.52139048]
[1750192035169,0.95321889,104680.0,104670.0,0.53094367]
[1750192035417,0.52302982,104680.0,104670.0,0.53094367]
[1750192035666,0.55154419,104680.0,104670.0,0.59214367]
[1750192035898,0.55150419,104680.0,104670.0,0.59214367]
[1750192036153,0.541952,104680.0,104670.0,0.59214367]
[1750192036344,0.35646964,104680.0,104670.0,0.59214367]
[1750192036568,0.53254192,104680.0,104670.0,0.59214367]
[1750192037762,0.33932313,104680.0,104670.0,0.59214367]
[1750192038005,0.55146406,104680.0,104670.0,0.59214367]
[1750192038247,0.56101643,104680.0,104670.0,0.59214367]
[1750192038483,0.54205452,104680.0,104670.0,0.59214367]
[1750192038766,0.53250197,104680.0,104670.0,0.59214367]
[1750192038980,0.53250188,104680.0,104670.0,0.59214367]
[1750192039226,0.53250197,104680.0,104670.0,0.59214367]
[1750192039446,0.7866583,104680.0,104670.0,0.52343036]
[1750192039677,1.0378854,104680.0,104670.0,0.54253692]
[1750192040128,1.02008666,104680.0,104670.0,0.54253692]
[1750192040385,1.03788668,104680.0,104670.0,0.54253692]
[1750192040596,1.02833404,104680.0,104670.0,0.54253692]
[1750192040831,1.01878194,104680.0,104670.0,0.51183702]
[1750192041061,1.00098192,104680.0,104670.0,0.54483702]
[1750192041299,1.01053466,104680.0,104670.0,0.57673702]
[1750192041542,1.00098192,104680.0,104670.0,0.57673702]
[1750192041754,1.00098138,104680.0,104670.0,0.57673702]
[1750192041973,1.02963922,104680.0,104670.0,0.54483711]
[1750192042197,0.94539577,104680.0,104670.0,0.49273036]
[1750192042422,0.58785731,104680.0,104670.0,0.49273036]
[1750192042663,0.94600859,104680.0,104670.0,0.51183729]
[1750192042882,0.86661948,104680.0,104670.0,0.49273045]
[1750192043104,0.86661948,104680.0,104670.0,0.50228401]
[1750192043335,0.86661948,104680.0,104670.0,0.51187748]
[1750192044248,0.86661948,104680.0,104670.0,0.5023241]
[1750192044482,1.11634574,104680.0,104670.0,0.29214]
[1750192045398,1.11634574,104680.0,104670.0,0.29114]
[1750192045628,1.11734574,104680.0,104670.0,0.29114]
[1750192046081,1.02119652,104680.0,104670.0,0.48221671]
[1750192046406,0.07037875,104680.0,104670.0,0.51087711]
[1750192046609,0.24633121,104680.0,104670.0,0.57387711]
[1750192046876,0.24273729,104680.0,104670.0,0.57387711]
[1750192047142,0.25229003,104680.0,104670.0,0.57387711]
[1750192047382,0.25329003,104680.0,104670.0,0.57387711]
[1750192048333,0.23418447,104680.0,104670.0,0.57387711]
[1750192048566,0.24373693,104680.0,104670.0,0.57387711]
[1750192049223,0.002,104680.0,104670.0,0.57387711]
[1750192049444,0.0582321,104680.0,104670.0,0.57387711]
[1750192049889,0.002,104680.0,104670.0,1.15132089]
[1750192050552,0.001,104680.0,104670.0,0.74023711]
[1750192050784,0.04668,104690.0,104680.0,0.57421612]
[1750192051031,0.03224902,104700.0,104690.0,0.28409513]
[1750192051249,0.04668,104700.0,104690.0,0.57419513]
[1750192051694,0.04668,104700.0,104690.0,0.74055513]
[1750192052128,0.04668,104700.0,104690.0,0.74102964]
[1750192052347,0.04868,104700.0,104690.0,0.74102964]
[1750192052566,0.002,104700.0,104690.0,1.15211342]
[1750192052814,0.05622936,104710.0,104700.0,0.28207414]
[1750192053061,0.04668,104710.0,104700.0,0.57217414]
[1750192053983,0.06577927,104710.0,104700.0,0.57217414]
[1750192054171,0.95155337,104720.0,104710.0,0.20055381]
[1750192054425,0.94200132,104720.0,104710.0,0.20055381]
[1750192054867,0.01055,104710.0,104700.0,0.5722135]
[1750192055082,0.01054991,104710.0,104700.0,0.5722135]
[1750192055544,0.00954991,104710.0,104700.0,0.5722135]
[1750192055976,0.01909991,104710.0,104700.0,0.5722135]
[1750192056201,0.63073723,104710.0,104700.0,0.54356196]
[1750192056486,0.21965345,104710.0,104700.0,0.50026387]
[1750192056765,0.63073723,104710.0,104700.0,0.50026387]
[1750192056987,0.62118741,104710.0,104700.0,0.49071296]
[1750192057210,0.62118741,104710.0,104700.0,0.50026369]
[1750192057429,0.62318741,104710.0,104700.0,0.50981433]
[1750192057898,0.62718741,104710.0,104700.0,0.50981433]
[1750192058123,0.62718741,104710.0,104700.0,0.50026369]
[1750192058587,0.63673759,104710.0,104700.0,0.50981414]
[1750192058815,0.63673759,104710.0,104700.0,0.49071296]
[1750192059492,0.61763768,104710.0,104700.0,0.29014]
[1750192059915,0.78387768,104710.0,104700.0,0.50026396]
[1750192060593,0.78387768,104710.0,104700.0,0.49071305]
[1750192060807,0.78387768,104710.0,104700.0,0.50026405]
[1750192061019,0.82939683,104710.0,104700.0,0.29969109]
[1750192061452,0.78387768,104710.0,104700.0,0.49071305]
[1750192062387,0.3727939,104710.0,104700.0,0.49071305]
[1750192062603,0.78387768,104710.0,104700.0,0.49071305]
[1750192063041,0.78387768,104710.0,104700.0,0.50026405]
[1750192064140,0.78387768,104710.0,104700.0,0.49071305]
[1750192064577,0.95846029,104710.0,104700.0,0.29014]
[1750192065294,0.99004298,104710.0,104700.0,0.29014]
[1750192065532,1.40112676,104710.0,104700.0,0.29014]
[1750192066192,1.00778422,104710.0,104700.0,0.29014]
[1750192066422,0.99004298,104710.0,104700.0,0.29014]
[1750192066635,1.4261922,104710.0,104700.0,0.29014]
[1750192066848,1.83727598,104710.0,104700.0,0.29014]
[1750192067065,1.85501752,104710.0,104700.0,0.29014]
[1750192067508,1.44393374,104710.0,104700.0,0.29014]
[1750192067725,1.4261922,104710.0,104700.0,0.29014]
[1750192068853,1.44393317,104710.0,104700.0,0.29014]
[1750192069640,1.47244763,104710.0,104700.0,0.29014]
[1750192069873,1.88353141,104710.0,104700.0,0.29014]
[1750192070944,1.06136385,104710.0,104700.0,0.29014]
[1750192071397,1.47244763,104710.0,104700.0,0.29014]
[1750192071812,1.30620763,104710.0,104700.0,0.29014]
[1750192072020,1.51888763,104710.0,104700.0,0.29014]
[1750192073238,1.51888585,104710.0,104700.0,0.29014]
[1750192074974,1.92996963,104710.0,104700.0,0.29014]
[1750192075213,1.92996963,104710.0,104700.0,0.49014]
[1750192076069,1.92997296,104710.0,104700.0,0.49014]
[1750192076296,1.92997558,104710.0,104700.0,0.49014]
[1750192077449,1.51889651,104710.0,104700.0,0.49014]
[1750192077675,1.96799958,104710.0,104700.0,0.20004]
[1750192077894,0.85511372,104700.0,104690.0,0.00047451]
[1750192078111,2.01637566,104700.0,104690.0,0.00047451]
[1750192078981,2.01638946,104700.0,104690.0,0.00047451]
[1750192079476,2.01938946,104700.0,104690.0,0.00047451]
[1750192080100,2.02338946,104700.0,104690.0,0.00047451]
[1750192080869,2.18942946,104700.0,104690.0,0.00047451]
[1750192081565,1.3219628,104700.0,104690.0,0.00047451]
[1750192081804,1.31679203,104700.0,104690.0,0.00047451]
[1750192082066,1.33133288,104700.0,104690.0,0.00047451]
[1750192082303,1.74241666,104700.0,104690.0,0.00047451]
[1750192082770,1.77401666,104700.0,104690.0,0.00047451]
[1750192082995,1.87016588,104700.0,104690.0,0.00047451]
[1750192083477,1.87016588,104700.0,104690.0,0.29157451]
[1750192084366,1.87016588,104700.0,104690.0,0.29161451]
[1750192085946,1.83856588,104700.0,104690.0,0.29161451]
[1750192086619,1.83556588,104700.0,104690.0,0.29161451]
[1750192086834,1.83156588,104700.0,104690.0,0.29161451]
[1750192087052,1.83356588,104700.0,104690.0,0.29161451]
[1750192087305,1.78207134,104700.0,104690.0,0.29161451]
[1750192087526,1.68692212,104700.0,104690.0,0.29161451]
[1750192088180,1.69647303,104700.0,104690.0,0.29161451]
[1750192092661,1.70313742,104700.0,104690.0,0.29161451]
[1750192092879,1.70313745,104700.0,104690.0,0.29161451]
[1750192093097,1.79928667,104700.0,104690.0,0.29161451]
[1750192095650,1.82772546,104700.0,104690.0,0.29161451]
[1750192095876,1.7993118,104700.0,104690.0,0.29161451]
[1750192096814,0.67798584,104700.0,104690.0,0.35551451]
[1750192097064,1.30126962,104700.0,104690.0,0.35551451]
[1750192097304,1.32301886,104700.0,104690.0,0.35551451]
[1750192097540,1.32225886,104700.0,104690.0,0.35551451]
[1750192099167,1.32225886,104700.0,104690.0,0.54655472]
[1750192099408,1.31270804,104700.0,104690.0,0.56565864]
[1750192099640,1.31270804,104700.0,104690.0,0.55610673]
[1750192099882,1.30315713,104700.0,104690.0,0.35551451]
[1750192101217,1.33675393,104700.0,104690.0,0.35551451]
[1750192101696,1.34342366,104700.0,104690.0,0.35551451]
[1750192102609,1.30982686,104700.0,104690.0,0.35551451]
[1750192103050,1.30315713,104700.0,104690.0,0.35551451]
[1750192103271,1.30982579,104700.0,104690.0,0.35551451]
[1750192103491,0.89207335,104700.0,104690.0,0.35551451]
[1750192103712,1.30982695,104700.0,104690.0,0.35551451]
[1750192104176,1.3098575,104700.0,104690.0,0.35551451]
[1750192104388,1.3031875,104700.0,104690.0,0.35551451]
[1750192104637,1.30973745,104700.0,104690.0,0.35551451]
[1750192104857,1.1373075,104700.0,104690.0,0.35551451]
[1750192105093,0.95464838,104700.0,104690.0,0.35551451]
[1750192105340,1.31741857,104700.0,104690.0,0.35551451]
[1750192105779,1.34588106,104700.0,104690.0,0.35551451]
[1750192107027,1.29465045,104700.0,104690.0,0.35551451]
[1750192107247,1.34588914,104700.0,104690.0,0.35551451]
[1750192107657,1.3458895,104700.0,104690.0,0.35551451]
[1750192108711,1.34588942,104700.0,104690.0,0.35551451]
[1750192109796,1.33699588,104700.0,104690.0,0.35551451]
[1750192109994,1.34589292,104700.0,104690.0,0.35551451]
[1750192110876,1.32710408,104700.0,104690.0,0.35551451]
[1750192111301,1.34490154,104700.0,104690.0,0.35551451]
[1750192111548,1.34290154,104700.0,104690.0,0.35551451]
[1750192112677,1.43905076,104700.0,104690.0,0.35551451]
[1750192112912,1.4390567,104700.0,104690.0,0.35551451]
[1750192113347,1.34290748,104700.0,104690.0,0.35551451]
[1750192115741,1.34291442,104700.0,104690.0,0.35551451]
[1750192116183,2.84291442,104700.0,104690.0,0.35551451]
[1750192118440,2.84291814,104700.0,104690.0,0.35551451]
[1750192121517,2.84291775,104700.0,104690.0,0.35551451]
[1750192121920,2.43183397,104700.0,104690.0,0.35551451]
[1750192122135,2.84291775,104700.0,104690.0,0.35551451]
[1750192123815,2.91088799,104700.0,104690.0,0.35551451]
[1750192124022,2.91089014,104700.0,104690.0,0.35551451]
[1750192125649,3.42860864,104700.0,104690.0,0.29161451]
[1750192125851,3.45707459,104700.0,104690.0,0.29161451]
[1750192126082,3.41912,104700.0,104690.0,0.29161451]
[1750192126296,3.45710224,104700.0,104690.0,0.29161451]
[1750192126734,3.41912,104700.0,104690.0,0.29161451]
[1750192127005,3.4221225,104700.0,104690.0,0.29161451]
[1750192127413,3.46009671,104700.0,104690.0,0.29161451]
[1750192127639,3.60119125,104700.0,104690.0,0.29161451]
[1750192127849,3.61009679,104700.0,104690.0,0.29161451]
[1750192128062,3.61409679,104700.0,104690.0,0.29161451]
[1750192128693,3.61409088,104700.0,104690.0,0.29161451]
[1750192129588,2.57395308,104700.0,104690.0,0.29161451]
[1750192129797,3.42681731,104700.0,104690.0,0.00051451]
[1750192130009,3.01573353,104700.0,104690.0,0.00051451]
[1750192130433,3.42681731,104700.0,104690.0,0.00051451]
[1750192132596,3.42680935,104700.0,104690.0,0.00051451]
[1750192132845,2.73219101,104700.0,104690.0,0.00051451]
[1750192133067,3.64339046,104700.0,104690.0,0.00051451]
[1750192135011,3.54724124,104700.0,104690.0,0.00051451]
[1750192135222,3.49066856,104700.0,104690.0,0.00051451]
[1750192135439,3.51512571,104700.0,104690.0,0.00051451]
[1750192136500,3.51512128,104700.0,104690.0,0.00051451]
[1750192136734,3.51512136,104700.0,104690.0,0.00156451]
[1750192136951,3.64397058,104700.0,104690.0,0.00156451]
[1750192138289,3.63729458,104700.0,104690.0,0.00156451]
[1750192138541,3.64396244,104700.0,104690.0,0.00156451]
[1750192138753,3.61126244,104700.0,104690.0,0.00156451]
[1750192139407,3.55433055,104700.0,104690.0,0.00156451]
[1750192140773,3.58443055,104700.0,104690.0,0.00156451]
[1750192141248,3.64136244,104700.0,104690.0,0.00156451]
[1750192141708,3.61126244,104700.0,104690.0,0.00156451]
[1750192141945,3.55433055,104700.0,104690.0,0.00156451]
[1750192142455,3.53654958,104700.0,104690.0,0.00156451]
[1750192142680,3.55432786,104700.0,104690.0,0.00156451]
[1750192143556,3.78376786,104700.0,104690.0,0.00156451]
[1750192143804,3.78376804,104700.0,104690.0,0.00156451]
[1750192144026,3.65581882,104700.0,104690.0,0.00156451]
[1750192144247,3.65581915,104700.0,104690.0,0.00156451]
[1750192145392,3.65581915,104700.0,104690.0,0.06476451]
[1750192145619,3.64915096,104700.0,104690.0,0.06476451]
[1750192145843,3.65582082,104700.0,104690.0,0.06476451]
[1750192146277,3.748284,104700.0,104690.0,0.06476451]
[1750192146515,3.73050296,104700.0,104690.0,0.06476451]
[1750192146741,3.74829272,104700.0,104690.0,0.06476451]
[1750192147393,3.65582954,104700.0,104690.0,0.06476451]
[1750192147620,3.07946576,104700.0,104690.0,0.06476451]
[1750192147841,3.10792934,104700.0,104690.0,0.06476451]
[1750192148061,3.23519513,104700.0,104690.0,0.06476451]
[1750192148514,3.22852504,104700.0,104690.0,0.06476451]